fUSD/lending_fUSD_20250213
["ID","MTS","AMOUNT","RATE_DAILY","PERIOD"]
[352911188,1739416243809,-754.45,0.00016438,2]
[352911189,1739416243819,-500.0,0.00016438,2]
[352911190,1739416243830,-500.0,0.00016438,2]
[352911191,1739416243840,-500.0,0.00016438,2]
[352911192,1739416243851,-500.0,0.00016438,2]
[352911193,1739416243863,-500.0,0.00016438,2]
[352911194,1739416243874,-500.0,0.00016438,2]
[352911195,1739416243885,-503.26766184,0.00016438,2]
[352911196,1739416243897,-500.0,0.00016438,2]
[352911197,1739416243909,-500.0,0.00016438,2]
[352911198,1739416243921,-500.0,0.00016438,2]
[352911199,1739416243932,-500.0,0.00016438,2]
[352911200,1739416243942,-5000.0,0.00016438,3]
[352911201,1739416243953,-500.0,0.00016438,2]
[352911202,1739416243964,-500.0,0.00016438,2]
[352911203,1739416243974,-500.0,0.00016438,2]
[352911204,1739416243984,-500.0,0.00016438,2]
[352911205,1739416243995,-500.0,0.00016438,2]
[352911206,1739416244006,-500.0,0.00016438,2]
[352911207,1739416244016,-500.0,0.00016438,2]
[352911208,1739416244028,-1366.89,0.00016438,2]
[352911209,1739416244040,-578.88,0.00016438,2]
[352911210,1739416244052,-500.0,0.00016438,2]
[352911211,1739416244062,-923.27,0.00016438,2]
[352911212,1739416244073,-500.0,0.00016438,2]
[352911213,1739416244083,-500.0,0.00016438,2]
[352911214,1739416244093,-500.0,0.00016438,2]
[352911215,1739416244103,-500.0,0.00016438,2]
[352911216,1739416244116,-500.0,0.00016438,2]
[352911217,1739416244126,-523.56595865,0.00016438,2]
[352911218,1739416244136,-3666.73,0.00016438,2]
[352911219,1739416244147,-500.0,0.00016438,2]
[352911220,1739416244159,-503.42405435,0.00016438,2]
[352911221,1739416244171,-500.0,0.00016438,2]
[352911222,1739416244181,-500.0,0.00016438,2]
[352911223,1739416244192,-893.64,0.00016438,2]
[352911224,1739416244201,-500.0,0.00016438,2]
[352911225,1739416244211,-5000.0,0.00016438,2]
[352911226,1739416244221,-704.64,0.00016438,2]
[352911227,1739416244231,-591.7,0.00016438,2]
[352911228,1739416244242,-502.3308137,0.00016438,2]
[352911229,1739416244252,-500.0,0.00016438,2]
[352911230,1739416244437,-500.0,0.00016438,2]
[352911231,1739416244458,-500.0,0.00016438,2]
[352911232,1739416244469,-500.0,0.00016438,2]
[352911233,1739416244478,-667.12,0.00016438,2]
[352911234,1739416244488,-151.0,0.00016438,2]
[352911235,1739416244499,-500.0,0.00016438,2]
[352911236,1739416244508,-500.0,0.00016438,2]
[352911237,1739416244517,-151.0,0.00016438,2]
[352911238,1739416244527,-500.0,0.00016438,2]
[352911239,1739416244537,-151.0,0.00016438,2]
[352911240,1739416244550,-151.0,0.00016438,2]
[352911241,1739416244559,-500.0,0.00016438,2]
[352911242,1739416244572,-500.0,0.00016438,2]
[352911243,1739416244593,-151.0,0.00016438,2]
[352911244,1739416244605,-151.0,0.00016438,2]
[352911245,1739416244617,-151.0,0.00016438,2]
[352911246,1739416244628,-203.517404,0.00016438,2]
[352911247,1739416244638,-500.0,0.00016438,2]
[352911248,1739416244650,-151.0,0.00016438,2]
[352911249,1739416244661,-502.37693191,0.00016438,2]
[352911250,1739416244671,-1884.62,0.00016438,2]
[352911251,1739416244684,-500.0,0.00016438,2]
[352911252,1739416244693,-500.0,0.00016438,2]
[352911253,1739416244702,-960.44,0.00016438,2]
[352911254,1739416244711,-565.29,0.00016438,2]
[352911255,1739416244721,-578.42,0.00016438,2]
[352911256,1739416244730,-1115.29,0.00016438,2]
[352911257,1739416244739,-500.0,0.00016438,2]
[352911258,1739416244749,-151.0,0.00016438,2]
[352911259,1739416244760,-151.0,0.00016438,2]
[352911260,1739416244770,-279.473902,0.00016438,2]
[352911261,1739416244784,-500.0,0.00016438,2]
[352911262,1739416244795,-500.0,0.00016438,2]
[352911263,1739416244805,-500.0,0.00016438,2]
[352911264,1739416244815,-577.89,0.00016438,2]
[352911265,1739416244826,-1905.64,0.00016438,2]
[352911266,1739416244836,-500.0,0.00016438,2]
[352911267,1739416244846,-711.65,0.00016438,2]
[352911268,1739416244861,-855.17,0.00016438,2]
[352911269,1739416244871,-500.0,0.00016438,2]
[352911270,1739416244880,-500.0,0.00016438,2]
[352911271,1739416244889,-500.0,0.00016438,2]
[352911272,1739416244898,-500.0,0.00016438,2]
[352911273,1739416244909,-151.0,0.00016438,2]
[352911274,1739416244918,-151.353351,0.00016438,2]
[352911275,1739416244928,-500.0,0.00016438,2]
[352911276,1739416244937,-500.0,0.00016438,2]
[352911277,1739416244947,-158.29039618,0.00016438,2]
[352911278,1739416244957,-500.0,0.00016438,2]
[352911279,1739416244967,-500.0,0.00016438,2]
[352911280,1739416244977,-500.0,0.00016438,2]
[352911281,1739416244988,-500.7695678,0.00016438,2]
[352911282,1739416245001,-500.0,0.00016438,2]
[352911283,1739416245011,-500.0,0.00016438,2]
[352911284,1739416245021,-500.0,0.00016438,2]
[352911285,1739416245032,-500.0,0.00016438,2]
[352911286,1739416245042,-240.70750474,0.00016438,2]
[352911287,1739416245051,-500.0,0.00016438,2]
[352911288,1739416245060,-500.0,0.00016438,2]
[352911289,1739416245070,-500.0,0.00016438,2]
[352911290,1739416245080,-502.45010614,0.00016438,2]
[352911291,1739416245091,-500.0,0.00016438,2]
[352911292,1739416245101,-500.0,0.00016438,2]
[352911293,1739416245110,-500.0,0.00016438,2]
[352911294,1739416245121,-500.0,0.00016438,2]
[352911295,1739416245131,-500.0,0.00016438,2]
[352911296,1739416245140,-500.0,0.00016438,2]
[352911297,1739416245150,-1631.47,0.00016438,2]
[352911298,1739416245160,-500.0,0.00016438,2]
[352911299,1739416245171,-500.0,0.00016438,2]
[352911300,1739416245180,-500.0,0.00016438,2]
[352911301,1739416245190,-500.0,0.00016438,2]
[352911302,1739416245199,-500.84898578,0.00016438,2]
[352911303,1739416245208,-584.45,0.00016438,2]
[352911304,1739416245219,-850.8,0.00016438,2]
[352911305,1739416245228,-500.0,0.00016438,2]
[352911306,1739416245238,-503.16528637,0.00016438,2]
[352911307,1739416245247,-512.48115227,0.00016438,2]
[352911308,1739416245257,-500.0,0.00016438,2]
[352911309,1739416245267,-500.0,0.00016438,2]
[352911310,1739416245277,-500.0,0.00016438,2]
[352911311,1739416245286,-500.0,0.00016438,2]
[352911312,1739416245296,-864.36,0.00016438,2]
[352911313,1739416245305,-500.0,0.00016438,2]
[352911314,1739416245318,-500.0,0.00016438,2]
[352911315,1739416245329,-500.0,0.00016438,2]
[352911316,1739416245339,-158.568017,0.00016438,2]
[352911317,1739416245352,-642.12,0.00016438,2]
[352911318,1739416245362,-500.0,0.00016438,2]
[352911319,1739416245372,-500.0,0.00016438,2]
[352911320,1739416245386,-500.79337903,0.00016438,2]
[352911322,1739416245398,-500.0,0.00016438,2]
[352911323,1739416245407,-500.0,0.00016438,2]
[352911324,1739416245417,-500.29431775,0.00016438,2]
[352911325,1739416245428,-500.77637955,0.00016438,2]
[352911326,1739416245439,-500.0,0.00016438,2]
[352911327,1739416245450,-500.0,0.00016438,2]
[352911328,1739416245459,-500.56408953,0.00016438,2]
[352911329,1739416245469,-1713.19,0.00016438,2]
[352911330,1739416245478,-1004.32,0.00016438,2]
[352911331,1739416245488,-500.0,0.00016438,2]
[352911332,1739416245498,-500.0,0.00016438,2]
[352911333,1739416245508,-1168.24,0.00016438,2]
[352911334,1739416245518,-500.0,0.00016438,2]
[352911335,1739416245527,-500.77171124,0.00016438,2]
[352911336,1739416245537,-1302.6,0.00016438,2]
[352911337,1739416245551,-500.0,0.00016438,2]
[352911338,1739416245561,-500.0,0.00016438,2]
[352911339,1739416245570,-500.0,0.00016438,2]
[352911340,1739416245580,-500.0,0.00016438,2]
[352911341,1739416245590,-500.0,0.00016438,2]
[352911342,1739416245600,-500.0,0.00016438,2]
[352911343,1739416245611,-500.0,0.00016438,2]
[352911344,1739416245620,-500.0,0.00016438,2]
[352911345,1739416245632,-500.0,0.00016438,2]
[352911346,1739416245643,-500.0,0.00016438,2]
[352911347,1739416245662,-501.57453448,0.00016438,2]
[352911348,1739416245674,-500.0,0.00016438,2]
[352911349,1739416245685,-737.17,0.00016438,2]
[352911350,1739416245696,-501.08085846,0.00016438,2]
[352911351,1739416245708,-500.0,0.00016438,2]
[352911352,1739416245718,-500.0,0.00016438,2]
[352911353,1739416245729,-612.65,0.00016438,2]
[352911354,1739416245739,-500.0,0.00016438,2]
[352911355,1739416245749,-500.0,0.00016438,2]
[352911356,1739416245760,-500.0,0.00016438,2]
[352911357,1739416245771,-500.0,0.00016438,2]
[352911358,1739416245780,-837.19,0.00016438,2]
[352911359,1739416245791,-500.0,0.00016438,2]
[352911360,1739416245802,-500.0,0.00016438,2]
[352911361,1739416245813,-500.0,0.00016438,2]
[352911362,1739416245823,-500.0,0.00016438,2]
[352911363,1739416245833,-500.0,0.00016438,2]
[352911364,1739416245844,-742.27,0.00016438,2]
[352911365,1739416245853,-512.98,0.00016438,2]
[352911366,1739416245864,-151.0,0.00016438,2]
[352911367,1739416245873,-500.0,0.00016438,2]
[352911368,1739416245884,-151.0,0.00016438,2]
[352911370,1739416245894,-500.0,0.00016438,2]
[352911372,1739416245903,-500.0,0.00016438,2]
[352911373,1739416245925,-151.0,0.00016438,2]
[352911374,1739416245938,-1389.18,0.00016438,2]
[352911376,1739416245948,-151.0,0.00016438,2]
[352911378,1739416245959,-1389.18,0.00016438,2]
[352911380,1739416245971,-1389.18,0.00016438,2]
[352911383,1739416245982,-1389.18,0.00016438,2]
[352911385,1739416245992,-500.0,0.00016438,2]
[352911387,1739416246002,-1389.18,0.00016438,2]
[352911389,1739416246012,-500.0,0.00016438,2]
[352911391,1739416246023,-1389.18,0.00016438,2]
[352911393,1739416246033,-1389.18,0.00016438,2]
[352911395,1739416246045,-500.0,0.00016438,2]
[352911397,1739416246055,-1389.18,0.00016438,2]
[352911399,1739416246064,-1389.18,0.00016438,2]
[352911401,1739416246076,-1389.18,0.00016438,2]
[352911403,1739416246086,-500.0,0.00016438,2]
[352911405,1739416246096,-1389.18,0.00016438,2]
[352911407,1739416246106,-1389.18,0.00016438,2]
[352911409,1739416246116,-1389.18,0.00016438,2]
[352911411,1739416246127,-1389.18,0.00016438,2]
[352911414,1739416246138,-1389.18,0.00016438,2]
[352911416,1739416246148,-1389.18,0.00016438,2]
[352911418,1739416246158,-1389.18,0.00016438,2]
[352911420,1739416246168,-1389.18,0.00016438,2]
[352911422,1739416246178,-500.0,0.00016438,2]
[352911424,1739416246190,-1389.18,0.00016438,2]
[352911426,1739416246201,-1389.18,0.00016438,2]
[352911428,1739416246211,-629.88470462,0.00016438,2]
[352911430,1739416246222,-1389.18,0.00016438,2]
[352911433,1739416246232,-1389.18,0.00016438,2]
[352911435,1739416246243,-1389.18,0.00016438,2]
[352911437,1739416246253,-502.47838798,0.00016438,2]
[352911439,1739416246263,-1389.29844061,0.00016438,2]
[352911441,1739416246273,-500.0,0.00016438,2]
[352911443,1739416246283,-534.58,0.00016438,2]
[352911445,1739416246293,-500.0,0.00016438,2]
[352911447,1739416246303,-1510.46,0.00016438,2]
[352911449,1739416246314,-1161.75,0.00016438,2]
[352911451,1739416246324,-500.0,0.00016438,2]
[352911453,1739416246334,-524.3,0.00016438,2]
[352911455,1739416246345,-500.0,0.00016438,2]
[352911457,1739416246360,-500.0,0.00016438,2]
[352911459,1739416246370,-500.0,0.00016438,2]
[352911461,1739416246380,-151.0,0.00016438,2]
[352911463,1739416246390,-151.0,0.00016438,2]
[352911465,1739416246402,-500.38093848,0.00016438,2]
[352911468,1739416246418,-151.0,0.00016438,2]
[352911470,1739416246429,-500.0,0.00016438,2]
[352911472,1739416246439,-151.0,0.00016438,2]
[352911474,1739416246450,-351.83793755,0.00016438,2]
[352911476,1739416246460,-500.0,0.00016438,2]
[352911478,1739416246471,-500.0,0.00016438,2]
[352911480,1739416246482,-151.0,0.00016438,2]
[352911483,1739416246492,-500.0,0.00016438,2]
[352911485,1739416246502,-178.444643,0.00016438,2]
[352911487,1739416246513,-500.0,0.00016438,2]
[352911489,1739416246523,-500.0,0.00016438,2]
[352911491,1739416246534,-512.20527269,0.00016438,2]
[352911493,1739416246544,-500.0,0.00016438,2]
[352911495,1739416246554,-500.0,0.00016438,2]
[352911497,1739416246565,-500.0,0.00016438,2]
[352911499,1739416246575,-826.86,0.00016438,2]
[352911501,1739416246586,-500.0,0.00016438,2]
[352911503,1739416246597,-771.27,0.00016438,2]
[352911505,1739416246607,-386.49452972,0.00016438,2]
[352911508,1739416246618,-515.26217684,0.00016438,2]
[352911510,1739416246629,-1484.62,0.00016438,2]
[352911512,1739416246639,-500.0,0.00016438,2]
[352911514,1739416246649,-500.0,0.00016438,2]
[352911516,1739416246659,-500.0,0.00016438,2]
[352911518,1739416246670,-500.0,0.00016438,2]
[352911520,1739416246680,-500.0,0.00016438,2]
[352911522,1739416246691,-1230.68,0.00016438,2]
[352911524,1739416246701,-500.0,0.00016438,2]
[352911526,1739416246714,-500.0,0.00016438,2]
[352911528,1739416246725,-824.73,0.00016438,2]
[352911530,1739416246735,-500.0,0.00016438,2]
[352911532,1739416246746,-500.0,0.00016438,2]
[352911534,1739416246756,-500.0,0.00016438,2]
[352911537,1739416246767,-503.97093074,0.00016438,2]
[352911539,1739416246777,-500.0,0.00016438,2]
[352911541,1739416246787,-500.0,0.00016438,2]
[352911543,1739416246798,-500.0,0.00016438,2]
[352911545,1739416246808,-151.0,0.00016438,2]
[352911546,1739416246818,-500.0,0.00016438,2]
[352911547,1739416246828,-151.0,0.00016438,2]
[352911548,1739416246838,-500.0,0.00016438,2]
[352911549,1739416246848,-154.64714,0.00016438,2]
[352911550,1739416246858,-500.0,0.00016438,2]
[352911551,1739416246868,-500.0,0.00016438,2]
[352911552,1739416246879,-500.0,0.00016438,2]
[352911553,1739416246889,-835.81,0.00016438,2]
[352911554,1739416246899,-667.11,0.00016438,2]
[352911555,1739416246909,-500.57667802,0.00016438,2]
[352911557,1739416246920,-849.13,0.00016438,2]
[352911559,1739416246931,-1.29909345,0.00016438,2]
[352911564,1739416247074,-498.70090655,0.00016438,2]
[352911565,1739416247085,-500.0,0.00016438,2]
[352911566,1739416247096,-500.0,0.00016438,2]
[352911567,1739416247106,-682.38,0.00016438,2]
[352911568,1739416247116,-2010.76,0.00016438,2]
[352911569,1739416247126,-500.0,0.00016438,2]
[352911570,1739416247135,-500.0,0.00016438,2]
[352911571,1739416247145,-500.0,0.00016438,2]
[352911572,1739416247155,-500.0,0.00016438,2]
[352911573,1739416247166,-500.0,0.00016438,2]
[352911574,1739416247176,-500.0,0.00016438,2]
[352911575,1739416247186,-500.44805505,0.00016438,2]
[352911576,1739416247197,-317.17370028,0.00016438,2]
[352911577,1739416247492,-182.82629972,0.00016438,2]
[352911578,1739416247503,-500.0,0.00016438,2]
[352911579,1739416247514,-500.0,0.00016438,2]
[352911580,1739416247524,-500.0,0.00016438,2]
[352911581,1739416247534,-1148.58,0.00016438,2]
[352911582,1739416247544,-500.0,0.00016438,2]
[352911583,1739416247554,-500.0,0.00016438,2]
[352911584,1739416247563,-1326.2,0.00016438,2]
[352911585,1739416247572,-151.0,0.00016438,2]
[352911586,1739416247582,-500.0,0.00016438,2]
[352911587,1739416247591,-151.0,0.00016438,2]
[352911588,1739416247601,-500.0,0.00016438,2]
[352911589,1739416247610,-151.0,0.00016438,2]
[352911590,1739416247619,-496.38732199,0.00016438,2]
[352911591,1739416247629,-500.0,0.00016438,2]
[352911592,1739416247639,-151.0,0.00016438,2]
[352911593,1739416247649,-500.0,0.00016438,2]
[352911594,1739416247659,-500.0,0.00016438,2]
[352911595,1739416247670,-1125.94,0.00016438,2]
[352911596,1739416247680,-1047.02,0.00016438,2]
[352911597,1739416247689,-500.0,0.00016438,2]
[352911598,1739416247698,-481.55450839,0.00016438,2]
[352911599,1739416247708,-500.0,0.00016438,2]
[352911600,1739416247718,-814.76,0.00016438,2]
[352911601,1739416247729,-500.0,0.00016438,2]
[352911602,1739416247739,-1397.24,0.00016438,2]
[352911603,1739416247748,-500.0,0.00016438,2]
[352911604,1739416247758,-500.0,0.00016438,2]
[352911605,1739416247768,-521.55,0.00016438,2]
[352911606,1739416247778,-1757.0,0.00016438,2]
[352911607,1739416247788,-500.0,0.00016438,2]
[352911608,1739416247797,-500.0,0.00016438,2]
[352911609,1739416247808,-500.0,0.00016438,2]
[352911610,1739416247819,-926.85,0.00016438,2]
[352911611,1739416247829,-622.7,0.00016438,2]
[352911612,1739416247840,-500.0,0.00016438,2]
[352911613,1739416247851,-186.75551669,0.00016438,2]
[352911614,1739416247862,-500.0,0.00016438,2]
[352911615,1739416247873,-500.0,0.00016438,2]
[352911616,1739416247884,-500.0,0.00016438,2]
[352911617,1739416247895,-507.93164863,0.00016438,2]
[352911618,1739416247906,-500.18623637,0.00016438,2]
[352911619,1739416247916,-500.0,0.00016438,2]
[352911620,1739416247926,-500.0,0.00016438,2]
[352911621,1739416247937,-151.0,0.00016438,2]
[352911622,1739416247947,-500.0,0.00016438,2]
[352911623,1739416247957,-151.0,0.00016438,2]
[352911624,1739416247969,-1118.72,0.00016438,2]
[352911625,1739416247979,-1927.78,0.00016438,2]
[352911626,1739416247989,-151.0,0.00016438,2]
[352911627,1739416247999,-500.0,0.00016438,2]
[352911628,1739416248009,-151.0,0.00016438,2]
[352911629,1739416248018,-500.0,0.00016438,2]
[352911630,1739416248028,-1759.19,0.00016438,2]
[352911631,1739416248038,-589.94,0.00016438,2]
[352911632,1739416248048,-500.0,0.00016438,2]
[352911633,1739416248060,-500.0,0.00016438,2]
[352911634,1739416248070,-500.0,0.00016438,2]
[352911635,1739416248081,-500.0,0.00016438,2]
[352911636,1739416248092,-500.0,0.00016438,2]
[352911637,1739416248102,-500.0,0.00016438,2]
[352911638,1739416248112,-501.63490567,0.00016438,2]
[352911639,1739416248122,-1143.1,0.00016438,2]
[352911640,1739416248132,-506.25,0.00016438,2]
[352911641,1739416248141,-500.0,0.00016438,2]
[352911642,1739416248150,-500.36825461,0.00016438,2]
[352911643,1739416248161,-500.0,0.00016438,2]
[352911644,1739416248171,-500.0,0.00016438,2]
[352911645,1739416248182,-500.0,0.00016438,2]
[352911646,1739416248192,-500.0,0.00016438,2]
[352911647,1739416248203,-219.80423773,0.00016438,2]
[352911648,1739416248213,-520.84371153,0.00016438,2]
[352911649,1739416248225,-500.0,0.00016438,2]
[352911650,1739416248236,-2327.52,0.00016438,2]
[352911651,1739416248246,-500.0,0.00016438,2]
[352911652,1739416248258,-500.0,0.00016438,2]
[352911653,1739416248268,-1078.37,0.00016438,2]
[352911654,1739416248279,-500.0,0.00016438,2]
[352911655,1739416248289,-1826.54,0.00016438,2]
[352911656,1739416248299,-500.0,0.00016438,2]
[352911657,1739416248309,-500.0,0.00016438,2]
[352911658,1739416248319,-500.0,0.00016438,2]
[352911659,1739416248329,-500.0,0.00016438,2]
[352911660,1739416248338,-500.0,0.00016438,2]
[352911661,1739416248350,-500.0,0.00016438,2]
[352911662,1739416248362,-500.0,0.00016438,2]
[352911663,1739416248372,-523.69457922,0.00016438,2]
[352911664,1739416248381,-500.0,0.00016438,2]
[352911665,1739416248393,-1047.96,0.00016438,2]
[352911666,1739416248403,-500.0,0.00016438,2]
[352911667,1739416248414,-948.35,0.00016438,2]
[352911668,1739416248423,-500.0,0.00016438,2]
[352911669,1739416248435,-500.0,0.00016438,2]
[352911670,1739416248445,-500.0,0.00016438,2]
[352911671,1739416248456,-151.151026,0.00016438,2]
[352911672,1739416248467,-151.151026,0.00016438,2]
[352911673,1739416248477,-510.55814512,0.00016438,2]
[352911674,1739416248487,-151.151026,0.00016438,2]
[352911675,1739416248497,-151.151026,0.00016438,2]
[352911676,1739416248508,-975.11,0.00016438,2]
[352911677,1739416248518,-500.0,0.00016438,2]
[352911678,1739416248528,-500.0,0.00016438,2]
[352911679,1739416248538,-540.81,0.00016438,2]
[352911680,1739416248550,-690.04,0.00016438,2]
[352911681,1739416248562,-500.0,0.00016438,2]
[352911682,1739416248573,-151.151026,0.00016438,2]
[352911683,1739416248583,-151.151026,0.00016438,2]
[352911684,1739416248594,-500.0,0.00016438,2]
[352911685,1739416248604,-1069.57,0.00016438,2]
[352911686,1739416248615,-151.151026,0.00016438,2]
[352911687,1739416248626,-151.151026,0.00016438,2]
[352911688,1739416248635,-500.0,0.00016438,2]
[352911689,1739416248646,-500.0,0.00016438,2]
[352911690,1739416248657,-500.0,0.00016438,2]
[352911691,1739416248667,-500.83140506,0.00016438,2]
[352911692,1739416248676,-500.0,0.00016438,2]
[352911693,1739416248686,-151.0,0.00016438,2]
[352911694,1739416248696,-151.0,0.00016438,2]
[352911695,1739416248707,-174.126113,0.00016438,2]
[352911696,1739416248717,-151.0,0.00016438,2]
[352911697,1739416248727,-500.0,0.00016438,2]
[352911698,1739416248738,-174.126113,0.00016438,2]
[352911699,1739416248748,-151.0,0.00016438,2]
[352911700,1739416248759,-174.126113,0.00016438,2]
[352911701,1739416248769,-582.76,0.00016438,2]
[352911702,1739416248779,-174.126113,0.00016438,2]
[352911703,1739416248790,-500.0,0.00016438,2]
[352911704,1739416248800,-500.0,0.00016438,2]
[352911705,1739416248811,-1228.81,0.00016438,2]
[352911706,1739416248821,-174.126113,0.00016438,2]
[352911707,1739416248831,-174.126113,0.00016438,2]
[352911708,1739416248842,-500.0,0.00016438,2]
[352911709,1739416248851,-500.0,0.00016438,2]
[352911710,1739416248861,-174.126113,0.00016438,2]
[352911711,1739416248871,-174.126113,0.00016438,2]
[352911712,1739416248880,-500.0,0.00016438,2]
[352911713,1739416248890,-500.0,0.00016438,2]
[352911714,1739416248904,-624.86623327,0.00016438,2]
[352911715,1739416248914,-966.47,0.00016438,2]
[352911716,1739416248924,-151.0,0.00016438,2]
[352911717,1739416248935,-151.0,0.00016438,2]
[352911718,1739416248945,-500.0,0.00016438,2]
[352911719,1739416248956,-500.0,0.00016438,2]
[352911720,1739416248969,-181.449718,0.00016438,2]
[352911721,1739416248979,-500.0,0.00016438,2]
[352911722,1739416248991,-500.0,0.00016438,2]
[352911723,1739416249002,-506.43924712,0.00016438,2]
[352911724,1739416249013,-501.13266839,0.00016438,2]
[352911725,1739416249023,-500.0,0.00016438,2]
[352911726,1739416249034,-500.0,0.00016438,2]
[352911727,1739416249044,-500.0,0.00016438,2]
[352911728,1739416249055,-1015.55,0.00016438,2]
[352911729,1739416249065,-500.0,0.00016438,2]
[352911730,1739416249076,-500.0,0.00016438,2]
[352911731,1739416249086,-500.0,0.00016438,2]
[352911732,1739416249096,-500.0,0.00016438,2]
[352911733,1739416249107,-932.64,0.00016438,2]
[352911734,1739416249117,-529.47,0.00016438,2]
[352911735,1739416249128,-652.23,0.00016438,2]
[352911736,1739416249138,-772.722803,0.00016438,2]
[352911737,1739416249148,-772.722803,0.00016438,2]
[352911738,1739416249160,-503.7591482,0.00016438,2]
[352911739,1739416249170,-195.64313054,0.00016438,2]
[352911740,1739416249182,-500.0,0.00016438,2]
[352911741,1739416249193,-772.722803,0.00016438,2]
[352911742,1739416249204,-899.72,0.00016438,2]
[352911743,1739416249216,-772.722803,0.00016438,2]
[352911744,1739416249226,-500.0,0.00016438,2]
[352911745,1739416249237,-500.0,0.00016438,2]
[352911746,1739416249248,-520.85472154,0.00016438,2]
[352911747,1739416249258,-1465.54,0.00016438,2]
[352911748,1739416249269,-772.722803,0.00016438,2]
[352911749,1739416249279,-772.722803,0.00016438,2]
[352911750,1739416249289,-772.722803,0.00016438,2]
[352911751,1739416249299,-772.722803,0.00016438,2]
[352911752,1739416249309,-500.0,0.00016438,2]
[352911753,1739416249320,-500.0,0.00016438,2]
[352911754,1739416249331,-500.0,0.00016438,2]
[352911755,1739416249342,-500.0,0.00016438,2]
[352911756,1739416249356,-459.593366,0.00016438,2]
[352911757,1739416249367,-882.56,0.00016438,2]
[352911758,1739416249377,-459.593366,0.00016438,2]
[352911759,1739416249387,-459.593366,0.00016438,2]
[352911760,1739416249397,-500.0,0.00016438,2]
[352911761,1739416249408,-1577.5,0.00016438,2]
[352911762,1739416249418,-459.593366,0.00016438,2]
[352911763,1739416249428,-500.0,0.00016438,2]
[352911764,1739416249439,-500.0,0.00016438,2]
[352911765,1739416249450,-500.0,0.00016438,2]
[352911766,1739416249460,-500.0,0.00016438,2]
[352911767,1739416249471,-1487.31,0.00016438,2]
[352911768,1739416249480,-459.593366,0.00016438,2]
[352911769,1739416249491,-459.593366,0.00016438,2]
[352911770,1739416249500,-459.593366,0.00016438,2]
[352911771,1739416249510,-459.593366,0.00016438,2]
[352911772,1739416249520,-500.0,0.00016438,2]
[352911773,1739416249530,-500.0,0.00016438,2]
[352911774,1739416249540,-500.0,0.00016438,2]
[352911775,1739416249551,-500.0,0.00016438,2]
[352911776,1739416249562,-500.0,0.00016438,2]
[352911777,1739416249573,-500.0,0.00016438,2]
[352911778,1739416249583,-500.0,0.00016438,2]
[352911779,1739416249593,-501.85674177,0.00016438,2]
[352911780,1739416249604,-500.0,0.00016438,2]
[352911781,1739416249614,-500.0,0.00016438,2]
[352911782,1739416249624,-500.0,0.00016438,2]
[352911783,1739416249634,-502.27,0.00016438,2]
[352911784,1739416249645,-330.74346324,0.00016438,2]
[352911785,1739416249655,-1017.0,0.00016438,2]